fUSD/lending_fUSD_20250305
["ID","MTS","AMOUNT","RATE_DAILY","PERIOD"]
[355501018,1741206642175,-500.0,0.00011532,2]
[355501020,1741206642185,-441.583146,0.00011532,2]
[355501023,1741206642195,-500.0,0.00011532,2]
[355501024,1741206642204,-577.19,0.00011532,2]
[355501026,1741206642213,-561.100427,0.00011532,2]
[355501028,1741206642223,-500.0,0.00011532,2]
[355501031,1741206642232,-150.612379,0.00011532,2]
[355501034,1741206642242,-370.49082079,0.00011532,2]
[355501036,1741206642252,-500.0,0.00011532,2]
[355501039,1741206642262,-500.0,0.00011532,2]
[355501041,1741206642272,-500.0,0.00011532,2]
[355501043,1741206642281,-578.28,0.00011532,2]
[355501045,1741206642291,-500.0,0.00011532,2]
[355501047,1741206642301,-500.0,0.00011532,2]
[355501049,1741206642311,-500.0,0.00011532,2]
[355501050,1741206642321,-500.0,0.00011532,2]
[355501053,1741206642330,-500.0,0.00011532,2]
[355501054,1741206642340,-500.0,0.00011532,2]
[355501057,1741206642353,-500.0,0.00011532,2]
[355501061,1741206642363,-562.28,0.00011532,2]
[355501064,1741206642372,-500.0,0.00011532,2]
[355501066,1741206642382,-500.0,0.00011532,2]
[355501069,1741206642392,-500.0,0.00011532,2]
[355501071,1741206642401,-500.0,0.00011532,2]
[355501073,1741206642411,-500.0,0.00011532,2]
[355501075,1741206642421,-500.0,0.00011532,2]
[355501077,1741206642430,-513.74,0.00011532,2]
[355501079,1741206642439,-508.22,0.00011532,2]
[355501081,1741206642449,-500.0,0.00011532,2]
[355501083,1741206642458,-500.0,0.00011532,2]
[355501086,1741206642468,-500.0,0.00011532,2]
[355501089,1741206642477,-500.0,0.00011532,2]
[355501091,1741206642486,-500.0,0.00011532,2]
[355501094,1741206642497,-500.0,0.00011532,2]
[355501097,1741206642506,-500.0,0.00011532,2]
[355501099,1741206642516,-500.0,0.00011532,2]
[355501100,1741206642525,-500.0,0.00011532,2]
[355501102,1741206642534,-598.88,0.00011532,2]
[355501104,1741206642544,-500.0,0.00011532,2]
[355501105,1741206642553,-515.82,0.00011532,2]
[355501106,1741206642563,-1027.5,0.00011532,2]
[355501107,1741206642573,-500.0,0.00011532,2]
[355501108,1741206642582,-1975.23,0.00011532,2]
[355501109,1741206642591,-500.0,0.00011532,2]
[355501110,1741206642600,-534.2,0.00011532,2]
[355501111,1741206642609,-1624.32,0.00011532,2]
[355501112,1741206642619,-506.02,0.00011532,2]
[355501113,1741206642628,-3587.18,0.00011532,2]
[355501114,1741206642639,-500.0,0.00011532,2]
[355501115,1741206642648,-952.4,0.00011532,2]
[355501116,1741206642658,-11060.82,0.00011532,2]
[355501117,1741206642667,-500.0,0.00011532,2]
[355501118,1741206642676,-500.0,0.00011532,2]
[355501119,1741206642686,-683.58,0.00011532,2]
[355501120,1741206642695,-500.0,0.00011532,2]
[355501121,1741206642704,-865.58,0.00011532,2]
[355501122,1741206642713,-1271.57,0.00011532,2]
[355501123,1741206642722,-500.0,0.00011532,2]
[355501124,1741206642731,-2380.84,0.00011532,2]
[355501125,1741206642741,-1094.84,0.00011532,2]
[355501126,1741206642751,-1526.61,0.00011532,2]
[355501127,1741206642761,-2041.64,0.00011532,2]
[355501128,1741206642770,-685.6,0.00011532,2]
[355501129,1741206642780,-500.0,0.00011532,2]
[355501130,1741206642789,-11320.64,0.00011532,2]
[355501131,1741206642799,-500.0,0.00011532,2]
[355501132,1741206642808,-700.05,0.00011532,2]
[355501133,1741206642817,-517.2,0.00011532,2]
[355501134,1741206642826,-500.0,0.00011532,2]
[355501135,1741206642835,-500.0,0.00011532,2]
[355501136,1741206642845,-539.01,0.00011532,2]
[355501137,1741206642854,-794.05,0.00011532,2]
[355501138,1741206642864,-741.23,0.00011532,2]
[355501139,1741206642873,-1325.52,0.00011532,2]
[355501140,1741206642882,-687.25,0.00011532,2]
[355501141,1741206642891,-500.0,0.00011532,2]
[355501142,1741206642901,-744.32,0.00011532,2]
[355501143,1741206642910,-765.0,0.00011532,2]
[355501144,1741206642920,-500.0,0.00011532,2]
[355501145,1741206642929,-725.68,0.00011532,2]
[355501146,1741206642938,-500.0,0.00011532,2]
[355501147,1741206642947,-662.42,0.00011532,2]
[355501148,1741206642957,-739.52,0.00011532,2]
[355501149,1741206642966,-952.1,0.00011532,2]
[355501150,1741206642976,-918.9,0.00011532,2]
[355501151,1741206642986,-500.0,0.00011532,2]
[355501152,1741206642995,-500.0,0.00011532,2]
[355501153,1741206643004,-599.22,0.00011532,2]
[355501154,1741206643014,-786.16,0.00011532,2]
[355501155,1741206643023,-1073.03,0.00011532,2]
[355501156,1741206643032,-2117.26,0.00011532,2]
[355501157,1741206643041,-500.0,0.00011532,2]
[355501158,1741206643051,-500.0,0.00011532,2]
[355501159,1741206643061,-906.47,0.00011532,2]
[355501160,1741206643071,-823.09,0.00011532,2]
[355501161,1741206643080,-1000.0,0.00011532,2]
[355501162,1741206643090,-650.91,0.00011532,2]
[355501163,1741206643099,-705.98,0.00011532,2]
[355501164,1741206643109,-2447.26,0.00011532,2]
[355501165,1741206643118,-500.0,0.00011532,2]
[355501166,1741206643128,-1359.51,0.00011532,2]
[355501167,1741206643137,-500.0,0.00011532,2]
[355501168,1741206643147,-675.0,0.00011532,2]
[355501169,1741206643156,-500.0,0.00011532,2]
[355501170,1741206643165,-500.0,0.00011532,2]
[355501171,1741206643175,-2903.63,0.00011532,2]
[355501172,1741206643184,-1419.13,0.00011532,2]
[355501173,1741206643194,-1504.89,0.00011532,2]
[355501174,1741206643203,-597.82,0.00011532,2]
[355501175,1741206643212,-500.0,0.00011532,2]
[355501176,1741206643222,-500.0,0.00011532,2]
[355501177,1741206643231,-1324.2,0.00011532,2]
[355501178,1741206643241,-500.0,0.00011532,2]
[355501179,1741206643252,-500.0,0.00011532,2]
[355501180,1741206643263,-1136.37,0.00011532,2]
[355501181,1741206643273,-617.91,0.00011532,2]
[355501182,1741206643282,-500.0,0.00011532,2]
[355501183,1741206643291,-500.0,0.00011532,2]
[355501184,1741206643301,-3830.65,0.00011532,2]
[355501185,1741206643310,-661.89,0.00011532,2]
[355501186,1741206643321,-697.96,0.00011532,2]
[355501187,1741206643330,-500.0,0.00011532,2]
[355501188,1741206643341,-4913.29,0.00011532,2]
[355501189,1741206643352,-500.0,0.00011532,2]
[355501190,1741206643363,-1085.04,0.00011532,2]
[355501191,1741206643373,-848.41,0.00011532,2]
[355501192,1741206643383,-502.46614023,0.00011532,2]
[355501193,1741206643392,-500.0,0.00011532,2]
[355501194,1741206643402,-2604.37,0.00011532,2]
[355501195,1741206643411,-728.03,0.00011532,2]
[355501196,1741206643420,-500.0,0.00011532,2]
[355501197,1741206643430,-500.0,0.00011532,2]
[355501198,1741206643439,-501.11917268,0.00011532,2]
[355501199,1741206643449,-500.0,0.00011532,2]
[355501200,1741206643459,-500.0,0.00011532,2]
[355501201,1741206643468,-892.39,0.00011532,2]
[355501202,1741206643477,-1971.78,0.00011532,2]
[355501203,1741206643486,-500.0,0.00011532,2]
[355501204,1741206643496,-500.0,0.00011532,2]
[355501205,1741206643506,-601.67,0.00011532,2]
[355501206,1741206643515,-500.0,0.00011532,2]
[355501207,1741206643524,-500.0,0.00011532,2]
[355501208,1741206643534,-564.47,0.00011532,2]
[355501209,1741206643543,-716.51,0.00011532,2]
[355501210,1741206643552,-3439.34,0.00011532,2]
[355501211,1741206643561,-500.0,0.00011532,2]
[355501212,1741206643570,-332.92,0.00011532,2]
[355501213,1741206643579,-500.0,0.00011532,2]
[355501214,1741206643588,-623.44,0.00011532,2]
[355501215,1741206643597,-500.0,0.00011532,2]
[355501216,1741206643606,-684.53,0.00011532,2]
[355501217,1741206643615,-174.46,0.00011532,2]
[355501218,1741206643624,-2157.49,0.00011532,2]
[355501219,1741206643633,-1717.01,0.00011532,2]
[355501220,1741206643643,-722.71,0.00011532,2]
[355501221,1741206643652,-334.32,0.00011532,2]
[355501222,1741206643661,-587.33,0.00011532,2]
[355501223,1741206643670,-500.0,0.00011532,2]
[355501224,1741206643680,-579.05,0.00011532,2]
[355501225,1741206643689,-500.0,0.00011532,2]
[355501226,1741206643699,-515.99,0.00011532,2]
[355501227,1741206643708,-619.43,0.00011532,2]
[355501228,1741206643717,-500.0,0.00011532,2]
[355501229,1741206643727,-599.96109387,0.00011532,2]
[355501230,1741206643736,-500.0,0.00011532,2]
[355501231,1741206643745,-252.53248494,0.00011532,2]
[355501232,1741206643755,-500.0,0.00011533,2]
[355501233,1741206643764,-500.0,0.00011533,2]
[355501234,1741206643774,-500.0,0.00011533,2]
[355501235,1741206643783,-581.61,0.00011533,2]
[355501236,1741206643793,-500.0,0.00011533,2]
[355501237,1741206643803,-500.0,0.00011533,2]
[355501238,1741206643812,-500.0,0.00011533,2]
[355501239,1741206643821,-546.0,0.00011533,2]
[355501240,1741206643831,-500.0,0.00011533,2]
[355501241,1741206643840,-500.0,0.00011533,2]
[355501242,1741206643850,-570.92,0.00011533,2]
[355501243,1741206643859,-545.79,0.00011533,2]
[355501244,1741206643869,-500.0,0.00011533,2]
[355501245,1741206643879,-500.0,0.00011533,2]
[355501246,1741206643889,-500.0,0.00011533,2]
[355501247,1741206643899,-500.0,0.00011533,2]
[355501248,1741206643908,-500.0,0.00011533,2]
[355501249,1741206643917,-513.87,0.00011533,2]
[355501250,1741206643926,-500.0,0.00011533,2]
[355501251,1741206643935,-512.64,0.00011533,2]
[355501252,1741206643945,-500.0,0.00011533,2]
[355501253,1741206643954,-500.0,0.00011533,2]
[355501254,1741206643963,-651.63,0.00011533,2]
[355501255,1741206643973,-500.0,0.00011533,2]
[355501256,1741206643982,-500.0,0.00011533,2]
[355501257,1741206643991,-510.55,0.00011533,2]
[355501258,1741206644001,-588.74,0.00011533,2]
[355501259,1741206644010,-745.26,0.00011533,2]
[355501260,1741206644018,-500.0,0.00011533,2]
[355501261,1741206644027,-500.0,0.00011533,2]
[355501262,1741206644035,-1312.06,0.00011533,2]
[355501263,1741206644045,-647.3,0.00011533,2]
[355501264,1741206644054,-500.0,0.00011533,2]
[355501265,1741206644063,-199.64,0.00011533,2]
[355501266,1741206644072,-500.0,0.00011533,2]
[355501267,1741206644082,-547.99,0.00011533,2]
[355501268,1741206644091,-500.0,0.00011533,2]
[355501269,1741206644101,-500.0,0.00011533,2]
[355501270,1741206644110,-621.87,0.00011533,2]
[355501271,1741206644120,-521.86,0.00011533,2]
[355501272,1741206644129,-500.0,0.00011533,2]
[355501273,1741206644139,-500.0,0.00011533,2]
[355501274,1741206644149,-625.82,0.00011533,2]
[355501275,1741206644159,-500.0,0.00011533,2]
[355501276,1741206644168,-500.0,0.00011533,2]
[355501277,1741206644178,-583.31,0.00011533,2]
[355501278,1741206644187,-500.0,0.00011533,2]
[355501279,1741206644197,-853.75,0.00011533,2]
[355501280,1741206644207,-579.48,0.00011533,2]
[355501281,1741206644216,-500.0,0.00011533,2]
[355501282,1741206644226,-593.98,0.00011533,2]
[355501283,1741206644236,-500.0,0.00011533,2]
[355501284,1741206644249,-578.62,0.00011533,2]
[355501285,1741206644260,-535.56,0.00011533,2]
[355501286,1741206644272,-500.0,0.00011533,2]
[355501287,1741206644283,-795.92,0.00011533,2]
[355501288,1741206644293,-609.84,0.00011533,2]
[355501289,1741206644303,-715.43,0.00011533,2]
[355501290,1741206644312,-500.0,0.00011533,2]
[355501291,1741206644322,-921.5,0.00011533,2]
[355501292,1741206644332,-554.63,0.00011533,2]
[355501293,1741206644344,-500.0,0.00011533,2]
[355501294,1741206644355,-514.26,0.00011533,2]
[355501295,1741206644365,-500.0,0.00011533,2]
[355501296,1741206644374,-500.0,0.00011533,2]
[355501297,1741206644386,-984.87,0.00011533,2]
[355501298,1741206644396,-1479.64,0.00011533,2]
[355501299,1741206644407,-707.86,0.00011533,2]
[355501300,1741206644417,-500.0,0.00011533,2]
[355501301,1741206644428,-711.54,0.00011533,2]
[355501302,1741206644438,-557.4,0.00011533,2]
[355501303,1741206644449,-925.92,0.00011533,2]
[355501304,1741206644459,-915.75,0.00011533,2]
[355501305,1741206644468,-940.82,0.00011533,2]
[355501306,1741206644478,-32.33530213,0.00011533,2]
[355501307,1741206644975,-467.66469787,0.00011533,2]
[355501308,1741206644984,-1428.04039368,0.00011533,2]
[355501309,1741206644997,-253.02472612,0.00011533,2]
[355501310,1741206645009,-1657.2582748,0.00011533,2]
[355501311,1741206645020,-787.36,0.00011533,2]
[355501312,1741206645032,-1043.5466054,0.00011533,2]
[355501313,1741206645042,-569.28,0.00011533,2]
[355501314,1741206645051,-500.0,0.00011533,2]
[355501315,1741206645060,-182.1733946,0.00011533,2]
[355501335,1741206645462,-500.0,0.00011258,2]
[355501337,1741206645471,-1113.0,0.00011495,2]
[355501339,1741206645481,-886.63,0.00011532,2]
[355501341,1741206645491,-220.19,0.00011532,2]
[355501343,1741206645502,-541.1766054,0.00011533,2]
[355501345,1741206645512,-521.89,0.00011533,2]
[355501347,1741206645521,-803.25362161,0.00011533,2]
[355501362,1741206646266,-175.80637839,0.00011533,2]
[355501363,1741206646275,-85.19362161,0.00011533,2]
[355501364,1741206646297,-1374.62637839,0.00011533,2]
[355501365,1741206646306,-500.0,0.00011533,2]
[355501366,1741206646315,-500.0,0.00011533,2]
[355501367,1741206646325,-500.0,0.00011533,2]
[355501368,1741206646334,-500.0,0.00011533,2]
[355501369,1741206646346,-500.0,0.00011534,2]
[355501370,1741206646356,-500.0,0.00011534,2]
[355501371,1741206646366,-500.0,0.00011534,2]
[355501372,1741206646375,-500.0,0.00011534,2]
[355501373,1741206646385,-500.0,0.00011534,2]
[355501374,1741206646394,-500.0,0.00011534,2]
[355501375,1741206646404,-500.0,0.00011534,2]
[355501376,1741206646413,-500.0,0.00011534,2]
[355501377,1741206646426,-588.59,0.00011534,2]
[355501378,1741206646435,-500.0,0.00011534,2]
[355501379,1741206646445,-161.28362161,0.00011534,2]
[355501380,1741206646456,-338.71637839,0.00011534,2]
[355501381,1741206646465,-131.32571423,0.00011534,2]
[355501382,1741206646495,-711.79428577,0.00011534,2]
[355501383,1741206646506,-522.85,0.00011534,2]
[355501384,1741206646516,-150.68761134,0.00011534,2]
[355501385,1741206646533,-349.31238866,0.00011534,2]
[355501386,1741206646543,-491.17206365,0.00011534,2]
[355501387,1741206646564,-226.01793635,0.00011534,2]
[355501388,1741206646573,-24.1295046,0.00011534,2]
[355501389,1741206647004,-475.8704954,0.00011534,2]
[355501390,1741206647014,-528.59,0.00011534,2]
[355501391,1741206647023,-500.0,0.00011534,2]
[355501392,1741206647033,-500.0,0.00011534,2]
[355501393,1741206647042,-500.0,0.00011534,2]
[355501394,1741206647051,-523.81,0.00011534,2]
[355501395,1741206647060,-500.0,0.00011534,2]
[355501396,1741206647069,-203.03803613,0.0001154,2]
[355501397,1741206647078,-159.13,0.00011582,2]
[355501398,1741206647088,-203.03803613,0.0001162,2]
[355501399,1741206647098,-159.13,0.00011655,2]
[355501400,1741206647107,-203.03803613,0.000117,2]
[355501401,1741206647116,-159.13,0.00011728,2]
[355501402,1741206647125,-203.03803613,0.0001178,2]
[355501403,1741206647135,-159.13,0.00011801,2]
[355501404,1741206647145,-500.0,0.00011806,2]
[355501405,1741206647154,-500.0,0.00011806,2]
[355501406,1741206647164,-500.0,0.00011806,2]
[355501407,1741206647173,-500.0,0.00011806,2]
[355501408,1741206647182,-500.0,0.00011806,2]
[355501409,1741206647192,-500.0,0.00011806,2]
[355501410,1741206647201,-500.0,0.00011806,2]
[355501411,1741206647211,-500.0,0.00011806,2]
[355501412,1741206647221,-434.88,0.00011806,2]
[355501413,1741206647230,-500.0,0.00011806,2]
[355501414,1741206647239,-500.0,0.00011806,2]
[355501415,1741206647248,-500.0,0.00011806,2]
[355501416,1741206647257,-500.0,0.00011806,2]
[355501417,1741206647267,-535.95,0.00011806,2]
[355501418,1741206647276,-500.0,0.00011806,2]
[355501419,1741206647286,-500.0,0.00011806,2]
[355501420,1741206647295,-500.0,0.00011806,2]
[355501421,1741206647304,-441.583146,0.00011806,2]
[355501422,1741206647314,-402.68662062,0.00011806,2]
[355501423,1741206647323,-577.19,0.00011806,2]
[355501424,1741206647333,-561.100427,0.00011806,2]
[355501425,1741206647344,-500.0,0.00011806,2]
[355501426,1741206647355,-500.0,0.00011806,2]
[355501427,1741206647364,-578.28,0.00011806,2]
[355501428,1741206647374,-500.0,0.00011806,2]
[355501429,1741206647383,-500.0,0.00011806,2]
[355501430,1741206647393,-500.0,0.00011806,2]
[355501431,1741206647403,-500.0,0.00011806,2]
[355501432,1741206647412,-562.28,0.00011806,2]
[355501433,1741206647421,-500.0,0.00011806,2]
[355501434,1741206647431,-500.0,0.00011806,2]
[355501435,1741206647441,-513.74,0.00011806,2]
[355501436,1741206647450,-508.22,0.00011806,2]
[355501437,1741206647459,-500.0,0.00011806,2]
[355501438,1741206647468,-500.0,0.00011806,2]
[355501439,1741206647477,-500.0,0.00011806,2]
[355501440,1741206647488,-500.0,0.00011806,2]
[355501441,1741206647499,-500.0,0.00011806,2]
[355501442,1741206647508,-500.0,0.00011806,2]
[355501443,1741206647518,-500.0,0.00011806,2]
[355501444,1741206647528,-598.88,0.00011806,2]
[355501445,1741206647538,-500.0,0.00011806,2]
[355501446,1741206647547,-515.82,0.00011806,2]
[355501447,1741206647557,-1027.5,0.00011806,2]
[355501448,1741206647566,-1975.23,0.00011806,2]
[355501449,1741206647575,-534.2,0.00011806,2]
[355501450,1741206647584,-1624.32,0.00011806,2]
[355501451,1741206647594,-506.02,0.00011806,2]
[355501452,1741206647603,-3587.18,0.00011806,2]
[355501453,1741206647612,-500.0,0.00011806,2]
[355501454,1741206647622,-952.4,0.00011806,2]
[355501455,1741206647631,-11060.82,0.00011806,2]
[355501456,1741206647640,-500.0,0.00011806,2]
[355501457,1741206647648,-500.0,0.00011806,2]
[355501458,1741206647657,-683.58,0.00011806,2]
[355501459,1741206647667,-500.0,0.00011806,2]
[355501460,1741206647676,-865.58,0.00011806,2]
[355501461,1741206647686,-1271.57,0.00011806,2]
[355501462,1741206647695,-500.0,0.00011806,2]
[355501463,1741206647704,-2380.84,0.00011806,2]
[355501464,1741206647715,-1094.84,0.00011806,2]
[355501465,1741206647724,-1526.61,0.00011806,2]
[355501466,1741206647734,-2041.64,0.00011806,2]
[355501467,1741206647743,-685.6,0.00011806,2]
[355501468,1741206647754,-500.0,0.00011806,2]
[355501469,1741206647763,-11320.64,0.00011806,2]
[355501470,1741206647773,-500.0,0.00011806,2]
[355501471,1741206647782,-700.05,0.00011806,2]
[355501472,1741206647979,-517.2,0.00011806,2]
[355501473,1741206647988,-500.0,0.00011806,2]
[355501474,1741206647999,-539.01,0.00011806,2]
[355501475,1741206648008,-794.05,0.00011806,2]
[355501476,1741206648018,-741.23,0.00011806,2]
[355501477,1741206648028,-1325.52,0.00011806,2]
[355501478,1741206648037,-687.25,0.00011806,2]
[355501479,1741206648047,-744.32,0.00011806,2]
[355501480,1741206648056,-765.0,0.00011806,2]
[355501481,1741206648066,-500.0,0.00011806,2]
[355501482,1741206648075,-725.68,0.00011806,2]
[355501483,1741206648085,-500.0,0.00011806,2]
[355501484,1741206648094,-662.42,0.00011806,2]
[355501485,1741206648105,-739.52,0.00011806,2]
[355501486,1741206648114,-952.1,0.00011806,2]
[355501487,1741206648124,-918.9,0.00011806,2]
[355501488,1741206648134,-500.0,0.00011806,2]
[355501489,1741206648144,-599.22,0.00011806,2]
[355501490,1741206648154,-786.16,0.00011806,2]
[355501491,1741206648164,-1073.03,0.00011806,2]
[355501492,1741206648173,-2117.26,0.00011806,2]
[355501493,1741206648184,-500.0,0.00011806,2]
[355501494,1741206648194,-906.47,0.00011806,2]
[355501495,1741206648204,-823.09,0.00011806,2]
[355501496,1741206648214,-1000.0,0.00011806,2]
[355501497,1741206648223,-650.91,0.00011806,2]
[355501498,1741206648233,-705.98,0.00011806,2]
[355501499,1741206648242,-2447.26,0.00011806,2]
[355501500,1741206648254,-500.0,0.00011806,2]
[355501501,1741206648265,-1359.51,0.00011806,2]
[355501502,1741206648275,-675.0,0.00011806,2]
[355501503,1741206648285,-500.0,0.00011806,2]
[355501504,1741206648295,-2903.63,0.00011806,2]
[355501505,1741206648305,-1419.13,0.00011806,2]
[355501506,1741206648315,-1504.89,0.00011806,2]
[355501507,1741206648325,-597.82,0.00011806,2]
[355501508,1741206648335,-500.0,0.00011806,2]
[355501509,1741206648349,-1324.2,0.00011806,2]
[355501510,1741206648359,-1136.37,0.00011806,2]
[355501511,1741206648369,-617.91,0.00011806,2]
[355501512,1741206648378,-500.0,0.00011806,2]
[355501513,1741206648389,-3830.65,0.00011806,2]
[355501514,1741206648399,-661.89,0.00011806,2]
[355501515,1741206648408,-697.96,0.00011806,2]
[355501516,1741206648417,-4913.29,0.00011806,2]
[355501517,1741206648427,-500.0,0.00011806,2]
[355501518,1741206648438,-1085.04,0.00011806,2]
[355501519,1741206648447,-848.41,0.00011806,2]
[355501520,1741206648457,-500.0,0.00011806,2]
[355501521,1741206648466,-2604.37,0.00011806,2]
[355501522,1741206648476,-728.03,0.00011806,2]
[355501523,1741206648485,-500.0,0.00011806,2]
[355501524,1741206648495,-500.0,0.00011806,2]
[355501525,1741206648506,-500.0,0.00011806,2]
[355501526,1741206648516,-892.39,0.00011806,2]
[355501527,1741206648526,-1971.78,0.00011806,2]
[355501528,1741206648535,-500.0,0.00011806,2]
[355501529,1741206648546,-500.0,0.00011806,2]
[355501530,1741206648556,-601.67,0.00011806,2]
[355501531,1741206648565,-500.0,0.00011806,2]
[355501532,1741206648575,-564.47,0.00011806,2]
[355501533,1741206648585,-716.51,0.00011806,2]
[355501534,1741206648595,-3439.34,0.00011806,2]
[355501535,1741206648605,-500.0,0.00011806,2]
[355501536,1741206648615,-500.0,0.00011806,2]
[355501537,1741206648624,-623.44,0.00011806,2]
[355501538,1741206648634,-500.0,0.00011806,2]
[355501539,1741206648644,-684.53,0.00011806,2]
[355501540,1741206648653,-2157.49,0.00011806,2]
[355501541,1741206648662,-1717.01,0.00011806,2]
[355501542,1741206648672,-722.71,0.00011806,2]
[355501543,1741206648681,-587.33,0.00011806,2]
[355501544,1741206648691,-500.0,0.00011806,2]
[355501545,1741206648700,-579.05,0.00011806,2]
[355501546,1741206648710,-500.0,0.00011806,2]
[355501547,1741206648719,-515.99,0.00011806,2]
[355501548,1741206648729,-619.43,0.00011806,2]
[355501549,1741206648738,-500.0,0.00011806,2]
[355501550,1741206648748,-500.0,0.00011806,2]
[355501551,1741206648759,-886.63,0.00011806,2]
[355501552,1741206648768,-500.0,0.00011807,2]
[355501553,1741206648778,-500.0,0.00011807,2]
[355501554,1741206648788,-500.0,0.00011807,2]
[355501555,1741206648797,-500.0,0.00011807,2]
[355501556,1741206648807,-500.0,0.00011807,2]
[355501557,1741206648816,-500.0,0.00011807,2]
[355501558,1741206648826,-184.77047058,0.00011807,2]
[355501559,1741206648835,-500.0,0.00011807,2]
[355501560,1741206648845,-500.0,0.00011807,2]
[355501561,1741206648854,-500.0,0.00011807,2]
[355501562,1741206648863,-500.0,0.00011807,2]
[355501563,1741206648873,-500.0,0.00011807,2]
[355501564,1741206648882,-500.0,0.00011807,2]
[355501565,1741206648892,-1235.447,0.00011807,2]
[355501566,1741206648902,-500.0,0.00011807,2]
[355501567,1741206648911,-296.64722938,0.00011807,2]
[355501568,1741206648921,-500.0,0.00011807,2]
[355501569,1741206648930,-500.0,0.00011807,2]
[355501570,1741206648939,-500.0,0.00011807,2]
[355501571,1741206648948,-500.0,0.00011807,2]
[355501572,1741206648957,-500.0,0.00011807,2]
[355501573,1741206648967,-500.0,0.00011807,2]
[355501574,1741206648976,-581.61,0.00011807,2]
[355501575,1741206648985,-500.0,0.00011807,2]
[355501576,1741206648994,-500.0,0.00011807,2]
[355501577,1741206649004,-500.0,0.00011807,2]
[355501578,1741206649013,-500.0,0.00011807,2]
[355501579,1741206649023,-546.0,0.00011807,2]
[355501580,1741206649032,-500.0,0.00011807,2]
[355501581,1741206649041,-500.0,0.00011807,2]
[355501582,1741206649051,-500.0,0.00011807,2]
[355501583,1741206649060,-500.0,0.00011807,2]
[355501584,1741206649069,-570.92,0.00011807,2]
[355501585,1741206649079,-500.0,0.00011807,2]
[355501586,1741206649089,-545.79,0.00011807,2]
[355501587,1741206649098,-500.0,0.00011807,2]
[355501588,1741206649108,-500.0,0.00011807,2]
[355501589,1741206649118,-500.0,0.00011807,2]
[355501590,1741206649127,-500.0,0.00011807,2]
[355501591,1741206649137,-500.0,0.00011807,2]
[355501592,1741206649147,-500.0,0.00011807,2]
[355501593,1741206649156,-500.0,0.00011807,2]
[355501594,1741206649166,-500.0,0.00011807,2]
[355501595,1741206649176,-500.0,0.00011807,2]
[355501596,1741206649185,-500.0,0.00011807,2]
[355501597,1741206649195,-500.0,0.00011807,2]
[355501598,1741206649204,-500.0,0.00011807,2]
[355501599,1741206649214,-500.0,0.00011807,2]
[355501600,1741206649224,-500.0,0.00011807,2]
[355501601,1741206649233,-500.0,0.00011807,2]
[355501602,1741206649242,-503.89743274,0.00011807,2]
[355501603,1741206649252,-513.87,0.00011807,2]
[355501604,1741206649261,-503.80834717,0.00011807,2]